fUSD/lending_fUSD_20240823
["ID","MTS","AMOUNT","RATE_DAILY","PERIOD"]
[335667512,1724407856134,-500.0,0.00010988,2]
[335667513,1724407856147,-500.0,0.00010988,2]
[335667514,1724407856157,-500.0,0.00010988,2]
[335667515,1724407856166,-899.01,0.00010988,2]
[335667516,1724407856175,-899.01,0.00010988,2]
[335667517,1724407856185,-539.39,0.00010988,2]
[335667518,1724407856194,-539.39,0.00010988,2]
[335667519,1724407856203,-500.0,0.00010988,2]
[335667520,1724407856213,-500.0,0.00010988,2]
[335667521,1724407856223,-500.0,0.00010988,2]
[335667522,1724407856234,-500.0,0.00010988,2]
[335667523,1724407856244,-500.0,0.00010988,2]
[335667524,1724407856254,-500.0,0.00010988,2]
[335667525,1724407856263,-705.75,0.00010988,2]
[335667526,1724407856272,-705.75,0.00010988,2]
[335667527,1724407856281,-507.43,0.00010988,2]
[335667528,1724407856290,-507.43,0.00010988,2]
[335667529,1724407856299,-563.75,0.00010988,2]
[335667530,1724407856308,-563.75,0.00010988,2]
[335667531,1724407856317,-1755.27,0.00010988,2]
[335667532,1724407856326,-1755.27,0.00010988,2]
[335667533,1724407856336,-808.95,0.00010988,2]
[335667534,1724407856345,-808.95,0.00010988,2]
[335667535,1724407856356,-652.29,0.00010988,2]
[335667536,1724407856366,-652.29,0.00010988,2]
[335667537,1724407856375,-828.87,0.00010988,2]
[335667538,1724407856384,-828.87,0.00010988,2]
[335667539,1724407856393,-763.8,0.00010988,2]
[335667540,1724407856402,-763.8,0.00010988,2]
[335667541,1724407856411,-633.78,0.00010988,2]
[335667542,1724407856420,-633.78,0.00010988,2]
[335667543,1724407856429,-1888.6,0.00010988,2]
[335667544,1724407856439,-1888.6,0.00010988,2]
[335667545,1724407856449,-500.0,0.00010988,2]
[335667546,1724407856458,-500.0,0.00010988,2]
[335667547,1724407856467,-600.87,0.00010988,2]
[335667548,1724407856476,-600.87,0.00010988,2]
[335667549,1724407856485,-500.0,0.00010988,2]
[335667550,1724407856495,-500.0,0.00010988,2]
[335667551,1724407856506,-500.0,0.00010988,2]
[335667552,1724407856515,-500.0,0.00010988,2]
[335667553,1724407856524,-768.45,0.00010988,2]
[335667554,1724407856534,-500.0,0.00010988,2]
[335667555,1724407856543,-500.0,0.00010988,2]
[335667556,1724407856552,-885.12,0.00010988,2]
[335667557,1724407856561,-822.89,0.00010988,2]
[335667558,1724407856571,-650.23,0.00010988,2]
[335667559,1724407856580,-650.23,0.00010988,2]
[335667560,1724407856589,-822.89,0.00010988,2]
[335667561,1724407856598,-1960.59,0.00010988,2]
[335667562,1724407856607,-500.0,0.00010988,2]
[335667563,1724407856617,-500.0,0.00010988,2]
[335667564,1724407856626,-706.14,0.00010988,2]
[335667565,1724407856635,-709.1,0.00010988,2]
[335667566,1724407856645,-500.0,0.00010988,2]
[335667567,1724407856654,-527.77,0.00010988,2]
[335667568,1724407856663,-746.88,0.00010988,2]
[335667569,1724407856673,-806.14,0.00010988,2]
[335667570,1724407856682,-10666.4,0.00010988,2]
[335667571,1724407856692,-500.0,0.00010988,2]
[335667572,1724407856703,-500.0,0.00010988,2]
[335667573,1724407856712,-916.87,0.00010988,2]
[335667574,1724407856721,-916.87,0.00010988,2]
[335667575,1724407856731,-631.29,0.00010988,2]
[335667576,1724407856741,-631.29,0.00010988,2]
[335667577,1724407856751,-500.0,0.00010988,2]
[335667578,1724407856762,-500.0,0.00010988,2]
[335667579,1724407856771,-500.0,0.00010988,2]
[335667580,1724407856781,-500.0,0.00010988,2]
[335667581,1724407856790,-3415.7,0.00010988,2]
[335667582,1724407856801,-1424.26,0.00010988,2]
[335667583,1724407856813,-500.0,0.00010988,2]
[335667584,1724407856823,-2440.43,0.00010988,2]
[335667585,1724407856832,-2440.43,0.00010988,2]
[335667586,1724407856842,-3965.82,0.00010988,2]
[335667587,1724407856851,-1988.47,0.00010988,2]
[335667588,1724407856859,-4329.23,0.00010988,2]
[335667589,1724407856869,-506.39,0.00010988,2]
[335667590,1724407856878,-506.39,0.00010988,2]
[335667591,1724407856887,-2288.04,0.00010988,2]
[335667592,1724407856896,-1051.09,0.00010988,2]
[335667593,1724407856905,-1698.81,0.00010988,2]
[335667594,1724407856914,-1698.81,0.00010988,2]
[335667595,1724407856923,-1161.47,0.00010988,2]
[335667596,1724407856932,-174.96,0.00010988,2]
[335667597,1724407856942,-500.0,0.00010988,2]
[335667598,1724407856951,-500.0,0.00010988,2]
[335667599,1724407856960,-500.0,0.00010988,2]
[335667600,1724407856969,-587.47,0.00010988,2]
[335667601,1724407856979,-587.47,0.00010988,2]
[335667602,1724407856987,-2628.96,0.00010988,2]
[335667603,1724407856997,-693.97,0.00010988,2]
[335667604,1724407857006,-639.65,0.00010988,2]
[335667605,1724407857015,-639.65,0.00010988,2]
[335667606,1724407857025,-2857.66,0.00010988,2]
[335667607,1724407857034,-896.39,0.00010988,2]
[335667608,1724407857043,-896.39,0.00010988,2]
[335667609,1724407857053,-2712.53,0.00010989,2]
[335667610,1724407857064,-500.0,0.00010989,2]
[335667611,1724407857074,-767.15,0.00010989,2]
[335667612,1724407857083,-843.91,0.00010989,2]
[335667613,1724407857093,-1024.76,0.00010989,2]
[335667614,1724407857103,-500.0,0.0001099,2]
[335667615,1724407857112,-500.0,0.0001099,2]
[335667616,1724407857121,-735.84,0.0001099,2]
[335667617,1724407857131,-500.0,0.0001099,2]
[335667618,1724407857142,-500.0,0.0001099,2]
[335667619,1724407857152,-500.0,0.0001099,2]
[335667620,1724407857161,-500.0,0.0001099,2]
[335667621,1724407857171,-768.45,0.0001099,2]
[335667622,1724407857180,-500.0,0.0001099,2]
[335667623,1724407857189,-885.12,0.0001099,2]
[335667624,1724407857199,-1960.59,0.0001099,2]
[335667625,1724407857208,-500.0,0.0001099,2]
[335667626,1724407857217,-500.0,0.0001099,2]
[335667627,1724407857226,-165.859846,0.0001099,2]
[335667628,1724407857235,-500.0,0.0001099,2]
[335667629,1724407857245,-706.14,0.0001099,2]
[335667630,1724407857254,-709.1,0.0001099,2]
[335667631,1724407857263,-500.0,0.0001099,2]
[335667632,1724407857272,-780.91,0.0001099,2]
[335667633,1724407857281,-527.77,0.0001099,2]
[335667634,1724407857290,-746.88,0.0001099,2]
[335667635,1724407857300,-806.14,0.0001099,2]
[335667636,1724407857309,-987.84,0.0001099,2]
[335667637,1724407857318,-909.4,0.0001099,2]
[335667638,1724407857327,-10666.4,0.0001099,2]
[335667639,1724407857336,-151.0,0.0001099,2]
[335667640,1724407857346,-504.9,0.0001099,2]
[335667641,1724407857355,-254.16344,0.0001099,2]
[335667642,1724407857364,-151.0,0.0001099,2]
[335667643,1724407857373,-721.43,0.0001099,2]
[335667644,1724407857382,-500.0,0.0001099,2]
[335667645,1724407857391,-151.0,0.0001099,2]
[335667646,1724407857400,-500.0,0.0001099,2]
[335667647,1724407857410,-500.0,0.0001099,2]
[335667648,1724407857419,-607.08,0.0001099,2]
[335667649,1724407857428,-500.0,0.0001099,2]
[335667650,1724407857437,-3415.7,0.0001099,2]
[335667651,1724407857446,-151.736985,0.0001099,2]
[335667652,1724407857455,-760.49,0.0001099,2]
[335667653,1724407857465,-500.0,0.0001099,2]
[335667654,1724407857474,-151.0,0.0001099,2]
[335667655,1724407857483,-500.0,0.0001099,2]
[335667656,1724407857492,-1424.26,0.0001099,2]
[335667657,1724407857502,-151.0,0.0001099,2]
[335667658,1724407857511,-500.0,0.0001099,2]
[335667659,1724407857520,-500.0,0.0001099,2]
[335667660,1724407857529,-2712.53,0.0001099,2]
[335667661,1724407857539,-969.59,0.0001099,2]
[335667662,1724407857548,-3965.82,0.0001099,2]
[335667663,1724407857558,-1553.11,0.0001099,2]
[335667664,1724407857567,-500.0,0.0001099,2]
[335667665,1724407857576,-151.0,0.0001099,2]
[335667666,1724407857586,-500.0,0.0001099,2]
[335667667,1724407857595,-1988.47,0.0001099,2]
[335667668,1724407857604,-4329.23,0.0001099,2]
[335667669,1724407857613,-500.0,0.0001099,2]
[335667670,1724407857622,-548.77,0.0001099,2]
[335667671,1724407857631,-2288.04,0.0001099,2]
[335667672,1724407857640,-500.0,0.0001099,2]
[335667673,1724407857650,-767.15,0.0001099,2]
[335667674,1724407857658,-4148.74,0.0001099,2]
[335667675,1724407857667,-1051.09,0.0001099,2]
[335667676,1724407857676,-1599.61,0.0001099,2]
[335667677,1724407857685,-1161.47,0.0001099,2]
[335667678,1724407857695,-2951.19,0.0001099,2]
[335667679,1724407857705,-608.37,0.0001099,2]
[335667680,1724407857714,-500.0,0.0001099,2]
[335667681,1724407857723,-934.68,0.0001099,2]
[335667682,1724407857732,-843.91,0.0001099,2]
[335667683,1724407857741,-936.55,0.0001099,2]
[335667684,1724407857751,-500.0,0.0001099,2]
[335667685,1724407857760,-151.0,0.0001099,2]
[335667686,1724407857770,-151.0,0.0001099,2]
[335667687,1724407857779,-1099.97,0.0001099,2]
[335667688,1724407857788,-205.203585,0.0001099,2]
[335667689,1724407857798,-151.0,0.0001099,2]
[335667690,1724407857808,-2628.96,0.0001099,2]
[335667691,1724407857818,-500.0,0.0001099,2]
[335667692,1724407857829,-500.0,0.0001099,2]
[335667693,1724407857839,-205.203585,0.0001099,2]
[335667694,1724407857848,-151.0,0.0001099,2]
[335667695,1724407857859,-693.97,0.0001099,2]
[335667696,1724407857869,-1019.97,0.0001099,2]
[335667697,1724407857879,-1024.76,0.0001099,2]
[335667698,1724407857888,-500.0,0.0001099,2]
[335667699,1724407857898,-500.0,0.0001099,2]
[335667700,1724407857907,-500.0,0.0001099,2]
[335667701,1724407857917,-500.0,0.0001099,2]
[335667702,1724407857927,-2857.66,0.0001099,2]
[335667703,1724407857936,-500.0,0.0001099,2]
[335667704,1724407857946,-151.0,0.0001099,2]
[335667705,1724407857956,-2060.0,0.0001099,2]
[335667706,1724407857966,-500.0,0.00010991,2]
[335667707,1724407857977,-151.0,0.00010991,2]
[335667708,1724407857987,-151.0,0.00010991,2]
[335667709,1724407857997,-151.0,0.00010991,2]
[335667710,1724407858007,-91961.1988685,0.00010991,2]
[335667711,1724407858016,-151.0,0.00010991,2]
[335667712,1724407858026,-735.84,0.00010991,2]
[335667713,1724407858036,-151.0,0.00010991,2]
[335667714,1724407858046,-2811.836721,0.00010991,2]
[335667715,1724407858057,-500.0,0.00010991,2]
[335667716,1724407858072,-1264.010441,0.00010991,2]
[335667717,1724407858082,-500.0,0.00010991,2]
[335667718,1724407858091,-500.0,0.00010991,2]
[335667719,1724407858102,-151.0,0.00010991,2]
[335667720,1724407858112,-151.0,0.00010991,2]
[335667721,1724407858122,-151.0,0.00010991,2]
[335667722,1724407858131,-151.0,0.00010991,2]
[335667723,1724407858142,-151.0,0.00010991,2]
[335667724,1724407858152,-151.0,0.00010991,2]
[335667725,1724407858161,-151.0,0.00010991,2]
[335667726,1724407858171,-151.0,0.00010991,2]
[335667727,1724407858181,-500.0,0.00010991,2]
[335667728,1724407858191,-95016.5075161,0.00010991,2]
[335667729,1724407858200,-483.94285361,0.00010991,2]
[335667730,1724407858210,-151.0,0.00010991,2]
[335667731,1724407858219,-204.654838,0.00010991,2]
[335667732,1724407858229,-780.91,0.00010991,2]
[335667733,1724407858238,-706.852148,0.00010991,2]
[335667734,1724407858248,-187.542101,0.00010991,2]
[335667735,1724407858257,-706.852148,0.00010991,2]
[335667736,1724407858266,-187.542101,0.00010991,2]
[335667737,1724407858276,-151.0,0.00010991,2]
[335667738,1724407858286,-500.0,0.00010991,2]
[335667739,1724407858295,-760.49,0.00010991,2]
[335667740,1724407858304,-500.0,0.00010991,2]
[335667741,1724407858313,-500.0,0.00010991,2]
[335667742,1724407858322,-500.0,0.00010991,2]
[335667743,1724407858332,-1599.61,0.00010991,2]
[335667744,1724407858341,-934.68,0.00010991,2]
[335667745,1724407858351,-500.0,0.00010991,2]
[335667746,1724407858360,-500.0,0.00010991,2]
[335667747,1724407858371,-500.0,0.00010991,2]
[335667748,1724407858380,-500.0,0.00010991,2]
[335667749,1724407858390,-5800.0,0.00010992,2]
[335667750,1724407858400,-1120.68,0.00010992,2]
[335667751,1724407858409,-500.0,0.00010992,2]
[335667752,1724407858418,-500.0,0.00010992,2]
[335667753,1724407858428,-899.01,0.00010992,2]
[335667754,1724407858438,-539.39,0.00010992,2]
[335667755,1724407858448,-500.0,0.00010992,2]
[335667756,1724407858458,-500.0,0.00010992,2]
[335667757,1724407858467,-500.0,0.00010992,2]
[335667758,1724407858477,-705.75,0.00010992,2]
[335667759,1724407858486,-507.43,0.00010992,2]
[335667760,1724407858496,-563.75,0.00010992,2]
[335667761,1724407858505,-1755.27,0.00010992,2]
[335667762,1724407858515,-808.95,0.00010992,2]
[335667763,1724407858524,-652.29,0.00010992,2]
[335667764,1724407858534,-828.87,0.00010992,2]
[335667765,1724407858543,-763.8,0.00010992,2]
[335667766,1724407858553,-633.78,0.00010992,2]
[335667767,1724407858562,-1888.6,0.00010992,2]
[335667768,1724407858572,-500.0,0.00010992,2]
[335667769,1724407858582,-600.87,0.00010992,2]
[335667770,1724407858591,-500.0,0.00010992,2]
[335667771,1724407858601,-500.0,0.00010992,2]
[335667772,1724407858610,-500.0,0.00010992,2]
[335667773,1724407858621,-650.23,0.00010992,2]
[335667774,1724407858630,-822.89,0.00010992,2]
[335667775,1724407858640,-500.0,0.00010992,2]
[335667776,1724407858649,-500.0,0.00010992,2]
[335667777,1724407858659,-916.87,0.00010992,2]
[335667778,1724407858669,-631.29,0.00010992,2]
[335667779,1724407858678,-500.0,0.00010992,2]
[335667780,1724407858687,-2440.43,0.00010992,2]
[335667781,1724407858697,-506.39,0.00010992,2]
[335667782,1724407858706,-1698.81,0.00010992,2]
[335667783,1724407858715,-500.0,0.00010992,2]
[335667784,1724407858724,-587.47,0.00010992,2]
[335667785,1724407858734,-639.65,0.00010992,2]
[335667786,1724407858744,-896.39,0.00010992,2]
[335667787,1724407858753,-579.41045907,0.00010993,2]
[335667788,1724407858762,-899.01,0.00010993,2]
[335667789,1724407858772,-539.39,0.00010993,2]
[335667790,1724407858781,-500.0,0.00010993,2]
[335667791,1724407858791,-500.0,0.00010993,2]
[335667792,1724407858800,-500.0,0.00010993,2]
[335667793,1724407858809,-500.0,0.00010993,2]
[335667794,1724407858819,-705.75,0.00010993,2]
[335667795,1724407858828,-507.43,0.00010993,2]
[335667796,1724407858837,-808.95,0.00010993,2]
[335667797,1724407858846,-652.29,0.00010993,2]
[335667798,1724407858856,-828.87,0.00010993,2]
[335667799,1724407859027,-763.8,0.00010993,2]
[335667800,1724407859037,-633.78,0.00010993,2]
[335667801,1724407859047,-500.0,0.00010993,2]
[335667802,1724407859057,-1888.6,0.00010993,2]
[335667803,1724407859070,-500.0,0.00010993,2]
[335667804,1724407859079,-600.87,0.00010993,2]
[335667805,1724407859089,-500.0,0.00010993,2]
[335667806,1724407859099,-768.45,0.00010993,2]
[335667807,1724407859108,-500.0,0.00010993,2]
[335667808,1724407859124,-885.12,0.00010993,2]
[335667809,1724407859134,-822.89,0.00010993,2]
[335667810,1724407859146,-650.23,0.00010993,2]
[335667811,1724407859156,-1960.59,0.00010993,2]
[335667812,1724407859165,-500.0,0.00010993,2]
[335667813,1724407859174,-500.0,0.00010993,2]
[335667814,1724407859184,-706.14,0.00010993,2]
[335667815,1724407859193,-709.1,0.00010993,2]
[335667816,1724407859202,-500.0,0.00010993,2]
[335667817,1724407859212,-806.14,0.00010993,2]
[335667818,1724407859221,-987.84,0.00010993,2]
[335667819,1724407859231,-909.4,0.00010993,2]
[335667820,1724407859240,-10666.4,0.00010993,2]
[335667821,1724407859248,-916.87,0.00010993,2]
[335667822,1724407859258,-151.0,0.00010993,2]
[335667823,1724407859267,-504.9,0.00010993,2]
[335667824,1724407859277,-151.0,0.00010993,2]
[335667825,1724407859287,-721.43,0.00010993,2]
[335667826,1724407859298,-631.29,0.00010993,2]
[335667827,1724407859309,-500.0,0.00010993,2]
[335667828,1724407859318,-607.08,0.00010993,2]
[335667829,1724407859328,-500.0,0.00010993,2]
[335667830,1724407859338,-500.0,0.00010993,2]
[335667831,1724407859348,-151.0,0.00010993,2]
[335667832,1724407859360,-500.0,0.00010993,2]
[335667833,1724407859370,-2440.43,0.00010993,2]
[335667834,1724407859379,-2712.53,0.00010993,2]
[335667835,1724407859389,-969.59,0.00010993,2]
[335667836,1724407859398,-1553.11,0.00010993,2]
[335667837,1724407859409,-185.394486,0.00010993,2]
[335667838,1724407859421,-500.0,0.00010993,2]
[335667839,1724407859432,-506.39,0.00010993,2]
[335667840,1724407859443,-548.77,0.00010993,2]
[335667841,1724407859452,-767.15,0.00010993,2]
[335667842,1724407859461,-4148.74,0.00010993,2]
[335667843,1724407859472,-1698.81,0.00010993,2]
[335667844,1724407859483,-2951.19,0.00010993,2]
[335667845,1724407859492,-608.37,0.00010993,2]
[335667846,1724407859502,-500.0,0.00010993,2]
[335667847,1724407859511,-843.91,0.00010993,2]
[335667848,1724407859520,-936.55,0.00010993,2]
[335667849,1724407859530,-500.0,0.00010993,2]
[335667850,1724407859539,-151.0,0.00010993,2]
[335667851,1724407859548,-587.47,0.00010993,2]
[335667852,1724407859557,-235.497765,0.00010993,2]
[335667853,1724407859567,-1099.97,0.00010993,2]
[335667854,1724407859576,-205.203585,0.00010993,2]
[335667855,1724407859585,-151.0,0.00010993,2]
[335667856,1724407859595,-500.0,0.00010993,2]
[335667857,1724407859605,-205.203585,0.00010993,2]
[335667858,1724407859614,-151.0,0.00010993,2]
[335667859,1724407859624,-1019.97,0.00010993,2]
[335667860,1724407859633,-639.65,0.00010993,2]
[335667861,1724407859643,-1024.76,0.00010993,2]
[335667862,1724407859653,-500.0,0.00010993,2]
[335667863,1724407859663,-500.0,0.00010993,2]
[335667864,1724407859673,-151.0,0.00010993,2]
[335667865,1724407859683,-2060.0,0.00010993,2]
[335667866,1724407859693,-896.39,0.00010993,2]
[335667867,1724407859703,-1120.68,0.00010994,2]
[335667868,1724407859713,-500.0,0.00010994,2]
[335667869,1724407859722,-899.01,0.00010994,2]
[335667870,1724407859732,-539.39,0.00010994,2]
[335667871,1724407859742,-500.0,0.00010994,2]
[335667872,1724407859753,-226.42093535,0.00010994,2]
[335667873,1724407859763,-500.0,0.00010994,2]
[335667874,1724407859772,-705.75,0.00010994,2]
[335667875,1724407859784,-462.74878716,0.00010994,2]
[335667876,1724407859794,-507.43,0.00010994,2]
[335667877,1724407859806,-563.75,0.00010994,2]
[335667878,1724407859816,-1755.27,0.00010994,2]
[335667879,1724407859826,-808.95,0.00010994,2]
[335667880,1724407859836,-652.29,0.00010994,2]
[335667881,1724407859845,-828.87,0.00010994,2]
[335667882,1724407859856,-763.8,0.00010994,2]
[335667883,1724407859865,-735.84,0.00010994,2]
[335667884,1724407859874,-633.78,0.00010994,2]
[335667885,1724407859885,-1888.6,0.00010994,2]
[335667886,1724407859894,-500.0,0.00010994,2]
[335667887,1724407859904,-500.0,0.00010994,2]
[335667888,1724407859914,-600.87,0.00010994,2]
[335667889,1724407859923,-500.0,0.00010994,2]
[335667890,1724407859933,-500.0,0.00010994,2]
[335667891,1724407859942,-500.0,0.00010994,2]
[335667892,1724407859951,-500.0,0.00010994,2]
[335667893,1724407859960,-768.45,0.00010994,2]
[335667894,1724407859970,-500.0,0.00010994,2]
[335667895,1724407859980,-885.12,0.00010994,2]
[335667896,1724407859990,-822.89,0.00010994,2]
[335667897,1724407860000,-650.23,0.00010994,2]
[335667898,1724407860010,-1960.59,0.00010994,2]
[335667899,1724407860019,-500.0,0.00010994,2]
[335667900,1724407860028,-500.0,0.00010994,2]
[335667901,1724407860038,-706.14,0.00010994,2]
[335667902,1724407860048,-709.1,0.00010994,2]
[335667903,1724407860058,-527.77,0.00010994,2]
[335667904,1724407860073,-780.91,0.00010994,2]
[335667905,1724407860083,-746.88,0.00010994,2]
[335667906,1724407860092,-806.14,0.00010994,2]
[335667907,1724407860102,-10666.4,0.00010994,2]
[335667908,1724407860113,-500.0,0.00010994,2]
[335667909,1724407860123,-916.87,0.00010994,2]
[335667910,1724407860132,-631.29,0.00010994,2]
[335667911,1724407860146,-500.0,0.00010994,2]
[335667912,1724407860157,-500.0,0.00010994,2]
[335667913,1724407860167,-500.0,0.00010994,2]
[335667914,1724407860176,-3415.7,0.00010994,2]
[335667915,1724407860185,-760.49,0.00010994,2]
[335667916,1724407860196,-1424.26,0.00010994,2]
[335667917,1724407860206,-500.0,0.00010994,2]
[335667918,1724407860217,-2440.43,0.00010994,2]
[335667919,1724407860225,-3965.82,0.00010994,2]
[335667920,1724407860234,-500.0,0.00010994,2]
[335667921,1724407860244,-1988.47,0.00010994,2]
[335667922,1724407860254,-4329.23,0.00010994,2]
[335667923,1724407860264,-500.0,0.00010994,2]
[335667924,1724407860274,-506.39,0.00010994,2]
[335667925,1724407860284,-2288.04,0.00010994,2]
[335667926,1724407860293,-500.0,0.00010994,2]
[335667927,1724407860303,-1051.09,0.00010994,2]
[335667928,1724407860312,-1599.61,0.00010994,2]
[335667929,1724407860322,-1698.81,0.00010994,2]
[335667930,1724407860332,-1161.47,0.00010994,2]
[335667931,1724407860342,-500.0,0.00010994,2]
[335667932,1724407860352,-500.0,0.00010994,2]
[335667933,1724407860362,-934.68,0.00010994,2]
[335667934,1724407860372,-587.47,0.00010994,2]
[335667935,1724407860381,-2628.96,0.00010994,2]
[335667936,1724407860390,-500.0,0.00010994,2]
[335667937,1724407860401,-693.97,0.00010994,2]
[335667938,1724407860411,-639.65,0.00010994,2]
[335667939,1724407860420,-288.12568454,0.00010994,2]
[335667940,1724407860430,-500.0,0.00010994,2]
[335667941,1724407860439,-2857.66,0.00010994,2]
[335667942,1724407860448,-500.0,0.00010994,2]
[335667943,1724407860458,-896.39,0.00010994,2]
[335667944,1724407860467,-1120.68,0.00010995,2]
[335667945,1724407860476,-500.0,0.00010995,2]
[335667946,1724407860486,-899.01,0.00010995,2]
[335667947,1724407860495,-539.39,0.00010995,2]
[335667948,1724407860504,-500.0,0.00010995,2]
[335667949,1724407860514,-500.0,0.00010995,2]
[335667950,1724407860524,-500.0,0.00010995,2]
[335667951,1724407860533,-705.75,0.00010995,2]
[335667952,1724407860542,-151.0,0.00010995,2]
[335667953,1724407860552,-507.43,0.00010995,2]
[335667954,1724407860561,-151.0,0.00010995,2]
[335667955,1724407860571,-563.75,0.00010995,2]
[335667956,1724407860581,-1755.27,0.00010995,2]
[335667957,1724407860591,-808.95,0.00010995,2]
[335667958,1724407860600,-652.29,0.00010995,2]
[335667959,1724407860610,-151.0,0.00010995,2]
[335667960,1724407860620,-151.0,0.00010995,2]
[335667961,1724407860629,-253.440142,0.00010995,2]
[335667962,1724407860639,-828.87,0.00010995,2]
[335667963,1724407860649,-763.8,0.00010995,2]
[335667964,1724407860659,-735.84,0.00010995,2]
[335667965,1724407860669,-151.0,0.00010995,2]
[335667966,1724407860678,-633.78,0.00010995,2]
[335667967,1724407860688,-500.0,0.00010995,2]
[335667968,1724407860698,-1888.6,0.00010995,2]
[335667969,1724407860708,-500.0,0.00010995,2]
[335667970,1724407860718,-500.0,0.00010995,2]
[335667971,1724407860727,-1264.010441,0.00010995,2]
[335667972,1724407860737,-600.87,0.00010995,2]
[335667973,1724407860747,-500.0,0.00010995,2]
[335667974,1724407860757,-500.0,0.00010995,2]
[335667975,1724407860767,-500.0,0.00010995,2]
[335667976,1724407860777,-500.0,0.00010995,2]
[335667977,1724407860786,-151.0,0.00010995,2]
[335667978,1724407860796,-221.798552,0.00010995,2]
[335667979,1724407860805,-768.45,0.00010995,2]
[335667980,1724407860815,-500.0,0.00010995,2]
[335667981,1724407860824,-151.0,0.00010995,2]
[335667982,1724407860834,-151.0,0.00010995,2]
[335667983,1724407860844,-151.0,0.00010995,2]
[335667984,1724407860854,-500.0,0.00010995,2]
[335667985,1724407860864,-151.0,0.00010995,2]
[335667986,1724407860875,-151.0,0.00010995,2]
[335667987,1724407860884,-885.12,0.00010995,2]
[335667988,1724407860894,-822.89,0.00010995,2]
[335667989,1724407860903,-650.23,0.00010995,2]
[335667990,1724407860913,-1960.59,0.00010995,2]
[335667991,1724407860923,-500.0,0.00010995,2]
[335667992,1724407860933,-306.46,0.00010995,2]
[335667993,1724407860943,-500.0,0.00010995,2]
[335667994,1724407860952,-706.14,0.00010995,2]
[335667995,1724407860962,-709.1,0.00010995,2]
[335667996,1724407860972,-151.0,0.00010995,2]
[335667997,1724407860981,-500.0,0.00010995,2]
[335667998,1724407860991,-780.91,0.00010995,2]
[335667999,1724407861000,-806.14,0.00010995,2]
[335668000,1724407861010,-987.84,0.00010995,2]
[335668001,1724407861020,-706.852148,0.00010995,2]
[335668002,1724407861029,-909.4,0.00010995,2]
[335668003,1724407861038,-187.542101,0.00010995,2]
[335668004,1724407861048,-706.852148,0.00010995,2]
[335668005,1724407861057,-10666.4,0.00010995,2]
[335668006,1724407861068,-500.0,0.00010995,2]
[335668007,1724407861077,-187.542101,0.00010995,2]
[335668008,1724407861086,-916.87,0.00010995,2]
[335668009,1724407861095,-504.9,0.00010995,2]
[335668010,1724407861105,-151.0,0.00010995,2]
[335668011,1724407861114,-721.43,0.00010995,2]